bitfinex-derivatives/quotes_ETHF0:USTF0_20250824
["timestamp","ask_amount","ask_price","bid_price","bid_amount"]
[1756035318634,1.1154,4746.9,4746.8,0.2374]
[1756035319139,1.3554,4746.9,4746.8,0.2374]
[1756035319343,1.1304,4746.2,4746.1,0.9951]
[1756035319644,1.3554,4746.1,4746.0,0.223]
[1756035319838,1.88286575,4746.1,4746.0,0.223]
[1756035320043,1.88286575,4746.1,4745.7,0.2374]
[1756035320238,1.1154,4745.9,4745.8,0.3709]
[1756035320444,1.88286575,4745.9,4745.8,0.6083]
[1756035321742,1.88286575,4745.9,4745.8,0.3853]
[1756035324340,1.88286575,4745.9,4745.8,0.2374]
[1756035324843,0.8073,4745.8,4745.5,0.8299]
[1756035325142,19.294,4746.0,4745.5,1.3572]
[1756035325143,1.3554,4745.6,4745.5,1.3572]
[1756035325345,1.3554,4745.6,4745.5,0.6242]
[1756035325646,1.3554,4745.2,4745.1,0.2374]
[1756035325947,21.17647437,4745.2,4745.1,0.2374]
[1756035327346,20.6494,4745.2,4745.1,0.2374]
[1756035327542,20.0671,4745.2,4744.8,0.2304]
[1756035327745,0.5481,4745.0,4744.9,0.2374]
[1756035328045,1.3554,4745.0,4744.9,0.2374]
[1756035328635,0.5481,4744.6,4744.2,0.2374]
[1756035328841,0.8073,4744.2,4743.9,0.2374]
[1756035329041,1.3554,4744.0,4743.9,0.6157]
[1756035329247,1.3554,4744.0,4743.9,1.3572]
[1756035329744,0.3094,4744.0,4743.9,1.3572]
[1756035329941,19.8633,4744.3,4743.9,1.3572]
[1756035330138,0.499,4744.2,4744.1,0.5273]
[1756035330336,0.8904,4744.2,4744.1,1.3572]
[1756035330643,1.1154,4744.2,4744.1,1.3572]
[1756035330841,20.1864,4744.2,4744.1,1.3572]
[1756035331443,20.4114,4744.2,4744.1,1.3572]
[1756035331838,20.6514,4744.2,4744.1,1.3572]
[1756035332647,0.6314,4744.0,4743.9,0.2374]
[1756035332839,0.465,4743.9,4743.7,0.2374]
[1756035333045,1.3554,4743.8,4743.7,0.2374]
[1756035333246,1.3554,4743.8,4743.7,0.8387]
[1756035333445,1.3554,4743.8,4743.7,0.9951]
[1756035333643,1.3554,4743.8,4743.7,1.3572]
[1756035334047,1.1154,4743.8,4743.7,1.3572]
[1756035335649,0.5481,4743.6,4743.5,0.2374]
[1756035335843,20.6544,4743.6,4743.5,1.3572]
[1756035336939,20.6544,4743.6,4743.5,0.2374]
[1756035337543,20.6544,4743.6,4743.5,1.336]
[1756035337942,20.4144,4743.6,4743.5,1.336]
[1756035341248,20.6389,4743.6,4743.5,1.336]
[1756035341548,20.6389,4743.6,4743.5,1.0078]
[1756035342053,0.5559,4743.5,4743.2,0.2398]
[1756035342245,1.0733,4743.3,4743.2,0.3935]
[1756035342448,20.6034,4743.3,4743.2,0.6315]
[1756035342651,20.6034,4743.3,4743.2,1.3384]
[1756035342949,0.7465,4743.1,4743.0,1.3384]
[1756035343148,1.3024,4743.1,4743.0,1.3384]
[1756035349667,1.3024,4743.1,4743.0,0.2398]
[1756035349854,1.3024,4743.1,4743.0,1.3384]
[1756035350361,1.0779,4743.1,4743.0,1.3384]
[1756035350961,1.3024,4743.1,4743.0,1.3384]
[1756035352262,1.82829209,4743.1,4743.0,1.3384]
[1756035352456,1.82829209,4743.1,4743.0,0.2398]
[1756035352670,1.3024,4743.0,4742.9,0.8606]
[1756035352863,1.3024,4743.0,4742.9,1.3384]
[1756035353363,1.82849174,4743.0,4742.9,1.3384]
[1756035359758,0.52609174,4743.0,4742.9,1.3594]
[1756035360061,0.52609174,4743.0,4742.9,1.3384]
[1756035360662,0.52609174,4743.0,4742.9,5.3384]
[1756035360856,0.52609174,4743.0,4742.9,5.3594]
[1756035361060,0.52609174,4743.0,4742.9,5.55537649]
[1756035361270,19.301,4743.7,4743.6,0.5324]
[1756035361469,19.301,4743.7,4743.6,1.3384]
[1756035361765,0.2291,4744.2,4743.8,0.7778]
[1756035362066,0.4496,4744.6,4744.3,0.1537]
[1756035362274,0.6974,4744.6,4744.5,1.3384]
[1756035362568,0.3706,4744.6,4744.5,1.3384]
[1756035362762,0.2245,4744.8,4744.5,0.8606]
[1756035362968,0.2245,4744.8,4741.9,19.301]
[1756035362969,0.3706,4744.8,4744.7,1.3384]
[1756035363366,19.301,4745.2,4744.7,1.3384]
[1756035363565,19.5301,4745.2,4744.8,0.806]
[1756035363768,20.2766,4745.2,4745.1,1.3384]
[1756035364364,20.6034,4745.2,4745.1,1.3384]
[1756035370869,20.6034,4745.2,4745.1,1.0102]
[1756035371072,1.3024,4745.2,4745.1,1.0102]
[1756035371270,23.818,4745.2,4744.4,0.2346]
[1756035371570,1.3305,4744.1,4744.0,1.3274]
[1756035375269,0.5777,4744.4,4744.0,1.3274]
[1756035375472,20.4058,4744.8,4744.7,1.3274]
[1756035375864,20.6245,4744.8,4744.7,1.3274]
[1756035376476,1.3305,4744.8,4744.7,1.3274]
[1756035376674,20.6245,4744.8,4744.7,1.3274]
[1756035377276,1.3305,4744.8,4744.7,1.3274]
[1756035379171,0.153,4744.8,4744.7,1.3274]
[1756035379466,0.737,4744.8,4744.7,1.3274]
[1756035381078,1.3305,4744.8,4744.7,1.3274]
[1756035381582,0.737,4744.8,4744.7,1.3274]
[1756035382975,1.1025,4745.4,4745.3,1.3274]
[1756035383182,21.14304913,4745.4,4745.3,1.3274]
[1756035385481,1.1118,4745.4,4745.3,1.3274]
[1756035385671,0.2343,4745.4,4745.3,1.3274]
[1756035385876,0.3873,4745.5,4745.4,1.3274]
[1756035386082,19.6783,4745.5,4745.4,1.3274]
[1756035386388,20.256,4745.5,4745.4,1.3274]
[1756035386579,1.3305,4745.5,4745.4,1.3274]
[1756035386780,0.8838,4745.5,4745.4,1.3274]
[1756035387082,1.3305,4745.5,4745.4,1.3274]
[1756035388382,20.027,4745.8,4745.7,0.5282]
[1756035388576,1.25931518,4745.8,4745.7,1.3274]
[1756035388771,0.153,4745.8,4745.7,1.3274]
[1756035389176,0.737,4745.8,4745.7,1.3274]
[1756035389376,0.153,4745.8,4745.7,1.3274]
[1756035389572,20.027,4746.0,4745.9,0.5282]
[1756035389779,20.54949493,4746.0,4745.9,1.3274]
[1756035389979,0.75679493,4746.0,4745.9,1.3274]
[1756035390285,0.52249493,4746.0,4745.9,1.3274]
[1756035390480,1.85299493,4746.0,4745.9,1.3274]
[1756035391578,0.90979493,4746.0,4745.9,1.3274]
[1756035392079,1.25949493,4746.0,4745.9,1.3274]
[1756035392281,0.52249493,4746.0,4745.9,1.3274]
[1756035393681,0.87219493,4746.0,4745.9,1.3274]
[1756035394382,1.25949493,4746.0,4745.9,1.3274]
[1756035395087,0.52249493,4746.0,4745.9,1.3274]
[1756035395386,0.7964,4746.7,4745.9,1.3274]
[1756035395587,19.285,4746.9,4746.5,1.3274]
[1756035395588,1.85257072,4746.6,4746.5,1.3274]
[1756035396082,0.52207072,4746.6,4746.5,1.3274]
[1756035396477,0.5777,4747.3,4746.5,0.5282]
[1756035396780,1.40149894,4747.2,4747.1,1.3388]
[1756035397086,0.52919894,4747.2,4747.1,1.3388]
[1756035397279,0.2298,4747.5,4747.1,1.3388]
[1756035397280,0.2298,4747.5,4747.1,0.5282]
[1756035397479,1.3297,4747.3,4747.2,1.3637]
[1756035397696,1.3297,4747.2,4747.1,1.1326]
[1756035397983,1.3297,4747.2,4747.1,1.3637]
[1756035400476,0.021,4748.1,4747.1,1.3637]
[1756035400682,1.3297,4747.9,4747.8,0.3148]
[1756035400877,1.85770631,4747.9,4747.8,0.7781]
[1756035401077,1.85770631,4747.9,4747.8,1.3637]
[1756035401782,1.85770631,4747.9,4747.8,1.0164]
[1756035401980,1.85770631,4747.9,4747.8,0.7781]
[1756035402177,0.1457,4747.6,4747.2,0.2322]
[1756035402382,1.3297,4747.3,4747.2,0.7781]
[1756035403488,0.7982,4747.2,4745.2,0.021]
[1756035403694,0.021,4748.1,4745.5,0.021]
[1756035403891,0.7982,4747.9,4745.5,0.8106]
[1756035404093,0.52758169,4747.8,4745.4,0.021]
[1756035404387,0.021,4748.1,4745.7,0.021]
[1756035404593,0.7982,4747.8,4745.7,0.8106]
[1756035404795,0.021,4747.9,4744.9,30.53669069]
[1756035405093,0.7982,4747.7,4745.1,0.8106]
[1756035405288,0.52756462,4747.6,4744.9,30.53669069]
[1756035405493,0.7982,4747.4,4745.3,0.8106]
[1756035405695,0.7982,4747.2,4745.4,0.8106]
[1756035405887,40.821,4747.8,4745.0,0.021]
[1756035406087,0.52761312,4747.7,4745.2,0.021]
[1756035406290,0.7606,4746.7,4746.6,0.3148]
[1756035406490,0.9904,4746.7,4746.6,0.7781]
[1756035406995,1.3297,4746.7,4746.6,0.7781]
[1756035409494,1.3297,4746.7,4746.6,1.3637]
[1756035410596,0.7982,4747.7,4746.7,0.8106]
[1756035410898,0.3858,4746.8,4746.7,0.9004]
[1756035411201,0.3393,4747.0,4746.9,0.9004]
[1756035411405,0.7251,4747.0,4746.9,1.3637]
[1756035411695,1.3297,4747.0,4746.9,1.3637]
[1756035415303,1.85860638,4747.0,4746.9,1.3637]
[1756035415905,1.3297,4747.0,4746.9,1.3637]
[1756035416302,1.85871539,4747.0,4746.9,1.3637]
[1756035416994,1.85871539,4747.0,4746.9,1.3847]
[1756035417202,1.85871539,4747.0,4746.9,1.3637]
[1756035417600,0.4589,4747.4,4746.9,1.3847]
[1756035417802,1.25431782,4747.3,4747.2,1.3637]
[1756035417999,1.85891782,4747.3,4746.9,0.2322]
[1756035418205,0.52921782,4747.2,4746.9,1.3847]
[1756035418512,0.7251,4747.2,4747.1,0.9004]
[1756035418713,1.3297,4747.2,4747.1,1.1315]
[1756035419112,1.3297,4747.2,4747.1,1.3637]
[1756035419814,1.85919812,4747.2,4747.1,1.3637]
[1756035420116,1.85919812,4747.2,4747.1,1.1254]
[1756035420615,1.85919812,4747.2,4747.1,0.7781]
[1756035421213,1.85919812,4747.2,4747.1,0.2311]
[1756035421416,1.85919812,4747.2,4746.8,0.5795]
[1756035421617,0.5315,4747.0,4746.9,1.1254]
[1756035421917,1.3297,4746.7,4746.6,0.2311]
[1756035422417,1.3297,4746.7,4746.6,1.0164]
[1756035422606,1.3297,4746.7,4746.6,1.3637]
[1756035423317,1.85973609,4746.7,4746.6,1.3637]
[1756035424709,0.7982,4746.6,4746.3,0.4633]
[1756035424911,1.3297,4746.4,4746.3,0.4633]
[1756035425111,0.5315,4745.9,4745.8,0.5784]
[1756035425311,1.3297,4745.9,4745.8,1.3637]
[1756035426518,1.86021949,4745.9,4745.8,1.0164]
[1756035426717,1.86021949,4745.9,4745.8,0.7781]
[1756035427017,1.86021949,4745.9,4745.8,0.2311]
[1756035427413,1.86021949,4745.9,4745.8,0.7719]
[1756035427611,1.86021949,4745.9,4745.8,1.3407]
[1756035429820,1.3297,4745.9,4744.9,30.365]
[1756035430019,1.0136,4745.9,4745.8,1.3294]
[1756035430720,1.3624,4745.9,4745.8,1.3294]
[1756035431015,0.5315,4745.9,4745.5,0.4584]
[1756035431222,0.5475,4745.3,4745.2,0.6095]
[1756035431523,1.3784,4745.3,4745.2,0.6095]
[1756035431915,1.3784,4745.3,4745.0,0.3296]
[1756035432117,1.3784,4744.9,4744.8,1.3294]
[1756035432623,1.3784,4744.9,4744.8,0.9998]
[1756035433318,0.8309,4744.8,4744.7,0.1511]
[1756035433522,1.3784,4744.8,4744.7,1.0902]
[1756035433722,0.7374,4744.8,4744.7,1.3294]
[1756035433928,0.3886,4744.8,4744.7,1.3294]
[1756035434414,0.3488,4745.1,4744.7,1.3294]
[1756035434610,0.3488,4745.4,4745.1,0.788]
[1756035434812,0.3488,4745.4,4745.3,1.3294]
[1756035435015,0.2412,4745.7,4745.3,1.3294]
[1756035435217,0.3488,4745.7,4745.5,0.5414]
[1756035435423,0.7374,4745.7,4745.6,1.3294]
[1756035435624,1.90777708,4745.7,4745.6,1.3294]
[1756035437221,1.3784,4745.7,4745.6,1.3294]
[1756035439825,1.90753622,4745.7,4745.6,1.3294]
[1756035448327,0.52913622,4745.7,4745.6,1.3294]
[1756035448619,1.3784,4746.0,4745.9,1.3294]
[1756035448820,1.90768668,4746.0,4745.9,1.3294]
[1756035449827,1.3784,4746.0,4745.9,0.7606]
[1756035451123,1.3784,4746.0,4745.9,1.0902]
[1756035451429,1.90792458,4746.0,4745.9,1.0902]
[1756035451629,1.90792458,4746.0,4745.9,0.7606]
[1756035460034,1.90792458,4746.0,4745.9,1.1113]
[1756035461132,1.90792458,4746.0,4745.9,1.3518]
[1756035466234,1.90792458,4746.0,4745.9,0.7606]
[1756035468042,1.90792458,4746.0,4745.9,1.1113]
[1756035469448,1.90792458,4746.0,4745.9,1.3518]
[1756035472640,1.26692458,4746.0,4745.9,1.3518]
[1756035473244,1.50342458,4746.0,4745.9,1.3518]
[1756035473450,1.72942458,4746.0,4745.9,1.3518]
[1756035473646,0.52952458,4746.0,4745.9,1.3518]
[1756035474150,0.5867,4746.3,4745.9,1.3518]
[1756035474346,1.52235428,4747.2,4745.4,0.021]
[1756035474347,0.3502,4746.1,4746.0,1.3651]
[1756035474551,1.0983106,4746.1,4746.0,1.3651]
[1756035474847,1.2485106,4746.1,4746.0,1.3651]
[1756035476944,0.5307106,4746.1,4746.0,1.3651]
[1756035477141,0.7178,4746.4,4746.3,0.555]
[1756035477344,1.86957862,4746.4,4746.3,1.3651]
[1756035477540,1.24857862,4746.4,4746.3,1.3651]
[1756035478248,1.48507862,4746.4,4746.3,1.3651]
[1756035478441,0.53077862,4746.4,4746.3,1.3651]
[1756035478644,0.2365,4747.8,4746.6,0.2351]
[1756035478844,0.9543,4746.8,4746.7,1.3651]
[1756035479043,1.48501675,4746.8,4746.7,1.3651]
[1756035479551,0.89831675,4746.8,4746.7,1.3651]
[1756035480144,0.53071675,4746.8,4746.7,1.3651]
[1756035482155,0.53071675,4746.8,4746.7,1.3861]
[1756035482353,0.53071675,4746.8,4746.7,1.3651]
[1756035483052,0.3502,4747.7,4746.7,1.3651]
[1756035483258,0.3502,4747.5,4746.8,0.2243]
[1756035483459,1.3388,4747.5,4747.4,0.4594]
[1756035483657,1.86826897,4747.5,4747.4,0.6157]
[1756035483860,1.86826897,4747.5,4747.4,1.3651]
[1756035489854,1.3388,4747.5,4747.4,1.3651]
[1756035490256,0.8763,4747.5,4747.4,1.3651]
[1756035490461,0.7178,4747.5,4747.4,1.3651]
[1756035490661,1.3198,4747.5,4747.4,1.3651]
[1756035492165,0.3296,4747.8,4747.7,1.3422]
[1756035492466,1.84177815,4747.8,4747.7,1.3422]
[1756035498072,0.52747815,4747.8,4747.7,1.3422]
[1756035498273,0.021,4749.2,4747.8,0.5846]
[1756035498468,1.3143,4747.9,4747.8,1.3422]
[1756035498674,1.84179519,4747.9,4747.8,1.3422]
[1756035498871,1.23979519,4747.9,4747.8,1.3422]
[1756035499269,0.91019519,4747.9,4747.8,1.3422]
[1756035499674,1.84179519,4747.9,4747.8,1.3422]
[1756035502477,1.84179519,4747.9,4747.8,0.7745]
[1756035502781,0.5286,4747.3,4747.2,0.2371]
[1756035502979,1.3143,4747.3,4747.2,0.2371]
[1756035503575,1.3143,4747.3,4747.2,0.4776]
[1756035504078,1.0807,4747.2,4747.1,0.2371]
[1756035504385,1.3143,4747.2,4747.1,1.122]
[1756035504581,1.3143,4747.2,4747.1,1.3422]
[1756035505982,1.3143,4747.2,4747.1,0.9947]
[1756035506173,1.3143,4747.2,4747.1,1.3422]
[1756035507172,1.84310876,4747.2,4747.1,1.3422]
[1756035507781,0.3296,4747.5,4747.1,1.3422]
[1756035507981,0.52880381,4747.4,4747.3,0.5171]
[1756035508177,0.52880381,4747.4,4747.3,1.3422]
[1756035509281,0.85840381,4747.4,4747.3,1.3422]
[1756035510280,1.24110381,4747.4,4747.3,1.3422]
[1756035510480,1.46360381,4747.4,4747.3,1.3422]
[1756035510679,1.69720381,4747.4,4747.3,1.3422]
[1756035512490,1.24110381,4747.4,4747.3,1.3422]
[1756035513186,0.91150381,4747.4,4747.3,1.3422]
[1756035513377,1.24110381,4747.4,4747.3,1.3422]
[1756035513578,0.52880381,4747.4,4747.3,1.3422]
[1756035514784,1.24110381,4747.4,4747.3,1.3422]
[1756035515281,1.84310381,4747.4,4747.3,1.3422]
[1756035516984,0.91150381,4747.4,4747.3,1.3422]
[1756035517189,0.52880381,4747.4,4747.3,1.3422]
[1756035517389,1.24580381,4747.4,4747.3,1.3422]
[1756035517585,1.47630381,4747.4,4747.3,1.3422]
[1756035517890,0.52880381,4747.4,4747.3,1.3422]
[1756035518591,0.52880381,4747.4,4747.3,1.3632]
[1756035519287,0.52880381,4747.4,4747.3,1.3422]
[1756035519589,0.52880381,4747.4,4747.3,1.3632]
[1756035519778,0.3481,4748.1,4747.3,1.3632]
[1756035519984,0.52961636,4748.0,4747.3,0.021]
[1756035520187,0.717,4748.1,4748.0,1.349]
[1756035520388,1.71485876,4748.1,4748.0,1.349]
[1756035520988,1.87055876,4748.1,4748.0,1.349]
[1756035527399,1.87025504,4748.1,4748.0,1.349]
[1756035529695,1.24625504,4748.1,4748.0,1.349]
[1756035529895,1.87025504,4748.1,4748.0,1.349]
[1756035534901,1.87025504,4748.1,4747.1,1.1266]
[1756035534902,0.7416,4747.2,4747.1,1.1266]
[1756035535102,1.341,4747.2,4747.1,1.32340722]
[1756035535597,1.341,4747.2,4747.1,1.54580722]
[1756035535807,1.341,4747.2,4747.1,1.54590394]
[1756035536000,1.341,4747.2,4747.1,1.349]
[1756035537304,1.87014624,4747.2,4747.1,1.349]
[1756035539905,1.341,4747.2,4747.1,1.349]
[1756035541000,1.341,4747.2,4746.8,0.3606]
[1756035541302,1.341,4746.9,4746.8,0.8109]
[1756035541505,1.341,4746.9,4746.8,0.7595]
[1756035541806,1.341,4746.9,4746.8,1.349]
[1756035542497,1.341,4746.9,4746.5,0.3606]
[1756035542697,1.341,4746.7,4746.6,0.4503]
[1756035542900,0.3689,4746.1,4746.0,1.349]
[1756035543202,1.341,4746.1,4746.0,1.54666088]
[1756035543408,1.341,4746.1,4746.0,1.349]
[1756035544407,0.8727,4746.1,4746.0,1.349]
[1756035544713,1.1853,4746.1,4746.0,1.349]
[1756035546005,1.1853,4746.1,4746.0,1.54667099]
[1756035549011,1.3363,4746.1,4746.0,1.54667099]
[1756035549602,0.5455,4745.8,4745.7,0.2415]
[1756035549803,0.5455,4745.8,4745.7,0.66268422]
[1756035549804,1.3339,4745.8,4745.7,0.66268422]
[1756035550102,1.3339,4745.8,4745.7,0.465]
[1756035550910,1.3339,4745.8,4745.5,0.3511]
[1756035551208,1.3339,4745.8,4745.7,1.1347]
[1756035551610,1.3339,4745.8,4745.7,0.7836]
[1756035551808,1.3339,4745.8,4745.4,0.3511]
[1756035551809,0.2397,4745.6,4745.5,0.465]
[1756035552003,1.3339,4745.6,4745.5,0.465]
[1756035552204,1.3339,4745.6,4745.5,1.3569]
[1756035552908,0.8811,4745.6,4745.5,1.3569]
[1756035553515,1.3339,4745.6,4745.5,1.3569]
[1756035553807,0.5753,4745.6,4745.5,1.3569]
[1756035554014,0.7762,4746.6,4746.5,0.5408]
[1756035554213,0.3945,4746.6,4746.5,1.3569]
[1756035554608,0.7301,4746.6,4746.5,1.3569]
[1756035554815,0.2397,4746.6,4746.5,1.3569]
[1756035556406,1.1829,4746.9,4746.8,0.3816]
[1756035556605,1.1829,4746.9,4746.8,0.5408]
[1756035556809,1.1829,4746.9,4746.8,1.3569]
[1756035557413,1.3339,4746.9,4746.8,1.3569]
[1756035558707,0.1548,4746.9,4746.8,1.3569]
[1756035558908,0.4528,4747.2,4746.8,0.5408]
[1756035559102,1.3339,4747.0,4746.9,1.3569]
[1756035559310,1.86184989,4747.0,4746.9,1.3569]
[1756035559509,1.63114989,4747.0,4746.9,1.3569]
[1756035559716,1.86184989,4747.0,4746.9,1.3569]
[1756035560012,1.3339,4747.0,4746.9,1.3569]
[1756035560214,1.86193445,4747.0,4746.9,1.3569]
[1756035563212,1.40913445,4747.0,4746.9,1.3569]
[1756035563411,1.25813445,4747.0,4746.9,1.3569]
[1756035563611,0.4528,4747.3,4746.9,1.3569]
[1756035563816,0.8473,4747.3,4747.2,0.5408]
[1756035564017,0.7301,4747.3,4747.2,1.3569]
[1756035564417,0.2397,4747.3,4747.2,1.3569]
[1756035564619,0.7301,4747.3,4747.2,1.3569]
[1756035564818,1.3339,4747.3,4747.2,1.3569]
[1756035565018,1.3339,4747.3,4747.2,0.2415]
[1756035565419,0.5455,4746.6,4746.5,1.0058]
[1756035565719,0.5455,4746.6,4746.5,1.3569]
[1756035565720,1.3339,4746.6,4746.5,1.3569]
[1756035574420,0.7301,4746.6,4746.5,1.3569]
[1756035574636,0.4528,4746.9,4746.5,1.3569]
[1756035574927,1.3339,4746.8,4746.7,1.3569]
[1756035575622,0.021,4748.3,4745.8,0.021]
[1756035575923,0.7301,4747.0,4746.9,1.3569]
[1756035576122,0.52879063,4747.0,4746.9,1.3569]
[1756035577423,1.24529063,4747.0,4746.9,1.3569]
[1756035579928,0.7165,4747.0,4746.9,1.3569]
[1756035580127,0.8687,4747.0,4746.9,1.3569]
[1756035580421,1.3312,4747.0,4746.9,1.3569]
[1756035582927,1.3312,4747.0,4746.9,0.3827]
[1756035583124,1.3312,4747.0,4745.9,0.021]
[1756035583125,0.7892,4746.9,4746.6,0.3576]
[1756035583328,1.3312,4746.7,4746.6,1.3573]
[1756035583630,1.3312,4746.7,4746.6,1.55495848]
[1756035584728,1.3312,4746.7,4746.6,1.55495791]
[1756035585924,1.3312,4746.7,4746.6,0.7598]
[1756035586735,1.3312,4746.7,4746.6,1.1174]
[1756035587629,1.3312,4746.7,4746.6,1.3573]
[1756035592827,0.542,4746.7,4746.3,0.3576]
[1756035593128,1.3312,4746.4,4746.3,0.2319]
[1756035593335,1.3312,4746.4,4746.3,0.4506]
[1756035596037,1.3312,4746.4,4746.3,0.64827411]
[1756035597036,1.3312,4746.4,4746.3,0.41637411]
[1756035597244,1.3312,4746.4,4746.3,0.19767411]
[1756035597748,1.3312,4746.4,4746.0,0.4506]
[1756035597749,1.86136506,4746.4,4746.0,0.4506]
[1756035597944,1.3312,4746.1,4746.0,0.4506]
[1756035598145,1.3312,4746.1,4746.0,0.64828379]
[1756035598544,1.3312,4746.1,4746.0,0.4506]
[1756035598744,1.3312,4746.1,4746.0,0.6005]
[1756035599449,1.3312,4746.1,4746.0,0.9581]
[1756035601954,1.3312,4746.1,4745.6,0.3576]
[1756035602149,0.542,4745.8,4745.7,0.6668]
[1756035602359,1.3312,4745.8,4745.7,0.9067]
[1756035602852,1.3312,4745.8,4745.7,0.7598]
[1756035603049,1.3312,4745.8,4745.7,0.4506]
[1756035604047,1.3312,4745.8,4745.7,1.3573]
[1756035605259,1.3312,4745.8,4745.7,0.9997]
[1756035605448,1.3312,4745.8,4744.7,0.16716682]
[1756035605653,0.7892,4745.7,4744.7,19.226]
[1756035605954,0.7165,4744.9,4744.8,1.53839119]
[1756035606351,1.179,4744.9,4744.8,1.53839119]
[1756035607052,1.3312,4744.9,4744.8,1.53833898]
[1756035607251,1.3312,4744.9,4744.8,1.53829893]
[1756035607450,1.3312,4744.9,4744.8,1.3573]
[1756035609255,1.3391,4744.6,4744.5,0.4651]
[1756035609456,0.3113,4744.4,4744.3,0.8253]
[1756035609762,1.3391,4744.4,4744.3,0.9722]
[1756035610060,1.3391,4744.4,4744.3,1.1308]
[1756035610664,1.3391,4744.4,4744.3,1.3649]
[1756035612955,0.5632,4744.1,4743.9,1.218]
[1756035613256,1.3391,4744.0,4743.9,1.3649]
[1756035613554,1.3391,4744.0,4743.9,0.4651]
[1756035613753,1.3391,4744.0,4743.9,0.2326]
[1756035613955,1.3391,4744.0,4743.9,0.612]
[1756035614156,1.3391,4744.0,4743.9,1.3649]
[1756035616055,1.3391,4744.0,4743.9,1.1308]
[1756035616360,1.3391,4744.0,4743.9,1.3649]
[1756035620857,1.3391,4743.8,4743.7,0.3055]
[1756035621058,1.3391,4743.8,4743.7,0.7706]
[1756035622267,1.3391,4743.8,4743.7,1.1308]
[1756035622765,1.3391,4743.8,4743.3,0.3602]
[1756035623069,0.5432,4743.5,4743.4,0.4651]
[1756035623265,1.3391,4743.5,4743.4,0.4651]
[1756035623468,1.3391,4743.5,4743.4,1.3649]
[1756035625666,0.1604,4742.9,4742.8,0.9839]
[1756035625870,0.1604,4742.9,4742.8,1.3649]
[1756035625871,1.3391,4742.9,4742.8,1.3649]
[1756035630077,1.1064,4742.9,4742.8,1.3649]
[1756035630277,1.3391,4742.9,4742.8,1.3649]
[1756035632166,1.3601,4742.9,4741.2,1.90204443]
[1756035632372,1.3391,4742.5,4742.4,0.2326]
[1756035632673,1.3391,4742.5,4742.4,1.3649]
[1756035635682,1.3391,4742.5,4742.4,0.7706]
[1756035635880,1.3391,4742.5,4742.1,0.5927]
[1756035636081,0.5432,4742.3,4742.2,0.4651]
[1756035636289,1.3391,4742.3,4742.2,1.1308]
[1756035636581,1.3391,4742.3,4742.2,1.3649]
[1756035639181,1.3271,4742.8,4742.7,1.3657]
[1756035646488,40.8,4744.8,4742.4,0.021]
[1756035646489,0.8187,4743.1,4743.0,0.5548]
[1756035646790,0.8187,4743.1,4743.0,1.3657]
[1756035647089,1.1737,4743.1,4743.0,1.3657]
[1756035647979,0.7273,4743.1,4743.0,1.3657]
[1756035648381,0.8014,4743.4,4743.0,1.3657]
[1756035648581,0.52783906,4743.3,4743.2,1.3657]
[1756035648892,1.40853906,4743.3,4743.2,1.3657]
[1756035649091,1.85493906,4743.3,4743.2,1.3657]
[1756035653280,1.85493906,4743.3,4741.8,0.021]
[1756035653490,1.3271,4743.0,4742.9,1.1303]
[1756035653996,1.3271,4743.0,4742.9,1.3657]
[1756035655689,0.3723,4743.0,4742.9,1.3657]
[1756035656694,0.2185,4743.0,4742.9,1.3657]
[1756035656882,0.355,4743.3,4742.9,1.3657]
[1756035657087,0.355,4743.1,4743.0,1.3657]
[1756035657294,0.7273,4743.1,4743.0,1.3657]
[1756035658301,1.106,4743.1,4743.0,1.3657]
[1756035658593,1.85601393,4743.1,4743.0,1.3657]
[1756035659594,0.8807,4743.1,4743.0,1.3657]
[1756035659788,1.40971313,4743.1,4743.0,1.3657]
[1756035661203,0.52901313,4743.1,4743.0,1.3657]
[1756035661793,0.355,4743.6,4743.0,0.5548]
[1756035661993,0.5257,4743.7,4743.6,0.5548]
[1756035662294,1.05501575,4743.7,4743.6,1.3657]
[1756035662695,1.85641575,4743.7,4743.6,1.3657]
[1756035662897,1.41001575,4743.7,4743.6,1.3657]
[1756035663599,1.85641575,4743.7,4743.6,1.3657]
[1756035670004,1.3271,4743.7,4743.6,1.3657]
[1756035672498,0.7273,4743.7,4743.6,1.3657]
[1756035674507,1.166,4743.7,4743.6,1.3657]
[1756035674803,0.3338,4744.1,4743.6,0.5548]
[1756035675000,0.7067,4743.8,4743.7,1.185]
[1756035675201,0.7067,4743.8,4743.7,1.3445]
[1756035675600,1.1454,4743.8,4743.7,1.3445]
[1756035676207,0.7725,4745.2,4743.5,0.16629862]
[1756035676504,0.7725,4744.9,4743.6,0.8218]
[1756035676705,0.52643805,4744.8,4743.4,0.021]
[1756035676902,0.7725,4744.6,4743.9,0.5929]
[1756035677103,1.83163805,4744.5,4744.4,0.7695]
[1756035678807,1.83163805,4744.5,4744.4,1.1266]
[1756035679410,1.83163805,4744.5,4744.4,1.3445]
[1756035680607,1.83163805,4744.5,4744.4,0.4647]
[1756035680827,1.05913805,4744.5,4744.2,0.4647]
[1756035680999,1.3052,4744.3,4744.2,0.9671]
[1756035681315,1.83163805,4744.3,4744.2,1.1266]
[1756035681812,1.83163805,4744.3,4744.2,1.3445]
[1756035688215,1.05913805,4744.3,4743.7,0.4647]
[1756035688519,1.3052,4743.7,4743.6,1.3445]
[1756035692110,1.3052,4743.7,4743.6,0.2358]
[1756035692417,1.3052,4743.5,4743.4,0.4647]
[1756035692718,1.3052,4743.5,4743.4,1.3445]